[Event "NJSK 2024 B"]
[Site "Groningen, Netherlands"]
[Date "2024.04.29"]
[Round "3.8"]
[White "Lopes, Samuel"]
[Black "Ponomarev, Ivan"]
[Result "1/2-1/2"]
[TimeControl "90min/40moves + 30min + 30sec/move"]
[WhiteElo "1906"]
[BlackElo "1924"]

1. e4 {[%clk 01:30:36]} {[%emt 00:00:23]} c5 {[%clk 01:30:59]} {[%emt
00:00:02]} 2. Nf3 {[%clk 01:30:55]} {[%emt 00:00:10]} e6 {[%clk 01:31:28]} 3.
b3 {[%clk 01:31:10]} {[%emt 00:00:16]} Nc6 {[%clk 01:28:53]} {[%emt 00:03:05]}
4. Bb2 {[%clk 01:31:28]} {[%emt 00:00:11]} d6 {[%clk 01:24:31]} {[%emt
00:04:52]} 5. d4 {[%clk 01:31:16]} {[%emt 00:00:41]} cxd4 {[%clk 01:24:24]}
{[%emt 00:00:38]} 6. Nxd4 {[%clk 01:31:43]} {[%emt 00:00:03]} e5 {[%clk
01:14:25]} {[%emt 00:10:29]} 7. Ne2 {[%clk 01:17:31]} {[%emt 00:14:42]} Nf6
{[%clk 01:14:23]} {[%emt 00:00:32]} 8. Nbc3 {[%clk 01:17:56]} {[%emt 00:00:05]}
Be7 {[%clk 01:04:23]} {[%emt 00:10:30]} 9. g3 {[%clk 01:18:09]} {[%emt
00:00:17]} Bg4 {[%clk 00:59:33]} {[%emt 00:05:19]} 10. Bg2 {[%clk 01:17:44]}
{[%emt 00:00:55]} O-O {[%clk 00:48:22]} {[%emt 00:11:42]} 11. h3 {[%clk
01:17:02]} {[%emt 00:01:11]} Be6 {[%clk 00:47:22]} {[%emt 00:01:31]} 12. O-O
{[%clk 01:17:03]} {[%emt 00:00:30]} Rc8 {[%clk 00:41:39]} {[%emt 00:06:13]} 13.
Kh2 {[%clk 01:11:36]} {[%emt 00:05:56]} a6 {[%clk 00:34:22]} {[%emt 00:07:48]}
14. a4 {[%clk 01:11:37]} {[%emt 00:00:29]} Qa5 {[%clk 00:30:58]} {[%emt
00:03:54]} 15. f4 {[%clk 01:09:25]} {[%emt 00:02:41]} exf4 {[%clk 00:23:25]}
{[%emt 00:08:03]} 16. Nxf4 {[%clk 01:09:39]} {[%emt 00:00:16]} Rfd8 {[%clk
00:22:29]} {[%emt 00:01:26]} 17. Re1 {[%clk 01:08:01]} {[%emt 00:02:09]} Ne5
{[%clk 00:20:04]} {[%emt 00:02:55]} 18. Ncd5 {[%clk 01:06:29]} {[%emt
00:02:01]} Bxd5 {[%clk 00:19:38]} {[%emt 00:00:57]} 19. exd5 {[%clk 00:58:15]}
{[%emt 00:08:44]} Nfd7 {[%clk 00:19:45]} {[%emt 00:00:22]} 20. Bd4 {[%clk
00:56:07]} {[%emt 00:02:38]} Bf6 {[%clk 00:18:33]} {[%emt 00:01:42]} 21. Nh5
{[%clk 00:49:22]} {[%emt 00:07:15]} Bg5 {[%clk 00:12:59]} {[%emt 00:06:00]} 22.
Be3 {[%clk 00:47:19]} {[%emt 00:02:38]} Bxe3 {[%clk 00:13:14]} {[%emt
00:00:14]} 23. Rxe3 {[%clk 00:47:43]} {[%emt 00:00:06]} Qc5 {[%clk 00:12:19]}
{[%emt 00:01:25]} 24. Re2 {[%clk 00:44:00]} {[%emt 00:04:13]} Qc3 {[%clk
00:11:58]} {[%emt 00:00:51]} 25. Rc1 {[%clk 00:43:57]} {[%emt 00:00:33]} Nc5
{[%clk 00:10:00]} {[%emt 00:02:29]} 26. Rb1 {[%clk 00:42:32]} {[%emt 00:01:55]}
Rd7 {[%clk 00:06:33]} {[%emt 00:03:55]} 27. Qe1 {[%clk 00:41:19]} {[%emt
00:01:44]} Qxe1 {[%clk 00:06:28]} {[%emt 00:00:36]} 28. Rbxe1 {[%clk 00:40:45]}
{[%emt 00:01:04]} Rdc7 {[%clk 00:06:11]} {[%emt 00:00:47]} 29. Nf4 {[%clk
00:39:42]} {[%emt 00:01:33]} Kf8 {[%clk 00:06:03]} {[%emt 00:00:37]} 30. Re3
{[%clk 00:36:01]} {[%emt 00:04:11]} b5 {[%clk 00:04:44]} {[%emt 00:01:50]} 31.
axb5 {[%clk 00:34:21]} {[%emt 00:02:10]} axb5 {[%clk 00:05:13]} {[%emt
00:00:01]} 32. Bf1 {[%clk 00:33:23]} {[%emt 00:01:27]} b4 {[%clk 00:05:30]}
{[%emt 00:00:13]} 33. Be2 {[%clk 00:31:52]} {[%emt 00:02:01]} Ncd7 {[%clk
00:02:44]} {[%emt 00:03:17]} 34. Bd1 {[%clk 00:31:30]} {[%emt 00:00:52]} Nf6
{[%clk 00:03:11]} {[%emt 00:00:03]} 35. Rf1 {[%clk 00:27:11]} {[%emt 00:04:49]}
Rc5 {[%clk 00:01:44]} {[%emt 00:01:55]} 36. Re2 {[%clk 00:26:27]} {[%emt
00:01:15]} Ke7 {[%clk 00:00:49]} {[%emt 00:01:25]} 37. Nd3 {[%clk 00:26:12]}
{[%emt 00:00:45]} Rxd5 {[%clk 00:00:46]} {[%emt 00:00:33]} 38. Nxb4 {[%clk
00:26:18]} {[%emt 00:00:24]} Rb5 {[%clk 00:00:50]} {[%emt 00:00:25]} 39. Nd3
{[%clk 00:25:55]} {[%emt 00:00:55]} Kd7 {[%clk 00:01:13]} {[%emt 00:00:06]} 40.
Nxe5+ {[%clk 00:24:58]} {[%emt 00:01:27]} Rxe5 {[%clk 00:01:23]} {[%emt
00:00:20]} 41. Rxe5 {[%clk 00:22:25]} {[%emt 00:03:04]} dxe5 {[%clk 00:01:52]}
42. Rxf6 {[%clk 00:19:19]} {[%emt 00:03:35]} 1/2-1/2

[Event "NJSK 2024 B"]
[Site "Groningen, Netherlands"]
[Date "2024.04.30"]
[Round "4.1"]
[White "Arnold, Rhys"]
[Black "Van Batenburg, Mees"]
[Result "1-0"]
[TimeControl "90min/40moves + 30min + 30sec/move"]
[WhiteElo "2185"]
[BlackElo "2110"]

1. e4 {[%clk 01:30:23]} {[%emt 00:00:36]} e6 {[%clk 01:30:39]} {[%emt
00:00:21]} 2. d4 {[%clk 01:30:42]} {[%emt 00:00:11]} d5 {[%clk 01:31:04]}
{[%emt 00:00:06]} 3. e5 {[%clk 01:30:41]} {[%emt 00:00:31]} c5 {[%clk
01:31:26]} {[%emt 00:00:09]} 4. c3 {[%clk 01:31:08]} {[%emt 00:00:03]} Nc6
{[%clk 01:31:51]} {[%emt 00:00:04]} 5. Nf3 {[%clk 01:31:36]} {[%emt 00:00:03]}
Nge7 {[%clk 01:32:15]} {[%emt 00:00:06]} 6. Na3 {[%clk 01:26:39]} {[%emt
00:05:28]} Bd7 {[%clk 01:32:31]} {[%emt 00:00:15]} 7. Be2 {[%clk 01:25:49]}
{[%emt 00:01:20]} cxd4 {[%clk 01:32:47]} {[%emt 00:00:14]} 8. cxd4 {[%clk
01:26:01]} {[%emt 00:00:18]} Nf5 {[%clk 01:32:59]} {[%emt 00:00:18]} 9. Nc2
{[%clk 01:25:38]} {[%emt 00:00:53]} f6 {[%clk 01:33:09]} {[%emt 00:00:21]} 10.
Bd3 {[%clk 01:17:46]} {[%emt 00:08:21]} Be7 {[%clk 01:32:04]} {[%emt 00:01:34]}
11. O-O {[%clk 01:15:59]} {[%emt 00:02:18]} O-O {[%clk 01:30:51]} {[%emt
00:01:44]} 12. Bxf5 {[%clk 01:12:47]} {[%emt 00:03:42]} exf5 {[%clk 01:30:52]}
{[%emt 00:00:29]} 13. Re1 {[%clk 01:10:27]} {[%emt 00:02:50]} Re8 {[%clk
01:23:07]} {[%emt 00:08:15]} 14. Qd3 {[%clk 01:02:19]} {[%emt 00:08:39]} Be6
{[%clk 01:17:55]} {[%emt 00:05:42]} 15. Bd2 {[%clk 00:53:26]} {[%emt 00:09:22]}
Rc8 {[%clk 01:10:47]} {[%emt 00:07:38]} 16. Rac1 {[%clk 00:52:16]} {[%emt
00:01:40]} g6 {[%clk 00:48:46]} {[%emt 00:22:31]} 17. Bf4 {[%clk 00:40:34]}
{[%emt 00:12:12]} g5 {[%clk 00:42:59]} {[%emt 00:06:18]} 18. exf6 {[%clk
00:39:43]} {[%emt 00:01:21]} Bxf6 {[%clk 00:43:23]} {[%emt 00:00:05]} 19. Nxg5
{[%clk 00:37:10]} {[%emt 00:03:03]} Bxg5 {[%clk 00:40:38]} {[%emt 00:03:15]} 20.
Qg3 {[%clk 00:37:32]} {[%emt 00:00:07]} h6 {[%clk 00:25:56]} {[%emt 00:15:13]}
21. h4 {[%clk 00:37:56]} {[%emt 00:00:06]} Kg7 {[%clk 00:25:07]} {[%emt
00:01:20]} 22. hxg5 {[%clk 00:37:01]} {[%emt 00:01:25]} h5 {[%clk 00:25:26]}
{[%emt 00:00:10]} 23. Re2 {[%clk 00:34:57]} {[%emt 00:02:34]} Bf7 {[%clk
00:23:04]} {[%emt 00:02:52]} 24. Rxe8 {[%clk 00:34:50]} {[%emt 00:00:37]} Qxe8
{[%clk 00:23:32]} {[%emt 00:00:02]} 25. Re1 {[%clk 00:32:24]} {[%emt 00:02:54]}
Qd7 {[%clk 00:22:53]} {[%emt 00:01:10]} 26. Qd3 {[%clk 00:30:38]} {[%emt
00:02:16]} Kg6 {[%clk 00:21:53]} {[%emt 00:01:31]} 27. f3 {[%clk 00:25:22]}
{[%emt 00:05:46]} Rh8 {[%clk 00:17:25]} {[%emt 00:04:58]} 28. Re2 {[%clk
00:22:37]} {[%emt 00:03:14]} Be6 {[%clk 00:15:56]} {[%emt 00:01:59]} 29. Qd2
{[%clk 00:21:44]} {[%emt 00:01:23]} Re8 {[%clk 00:12:56]} {[%emt 00:03:30]} 30.
Ne1 {[%clk 00:21:03]} {[%emt 00:01:11]} Bf7 {[%clk 00:12:57]} {[%emt 00:00:30]}
31. Rxe8 {[%clk 00:20:55]} {[%emt 00:00:38]} Qxe8 {[%clk 00:13:15]} {[%emt
00:00:11]} 32. Nd3 {[%clk 00:21:07]} {[%emt 00:00:17]} Qe7 {[%clk 00:12:19]}
{[%emt 00:01:27]} 33. Be3 {[%clk 00:20:06]} {[%emt 00:01:31]} Kg7 {[%clk
00:11:43]} {[%emt 00:01:05]} 34. a3 {[%clk 00:18:17]} {[%emt 00:02:19]} Qc7
{[%clk 00:10:08]} {[%emt 00:02:05]} 35. Bf4 {[%clk 00:16:30]} {[%emt 00:02:17]}
Qb6 {[%clk 00:09:41]} {[%emt 00:00:57]} 36. Be5+ {[%clk 00:16:44]} {[%emt
00:00:15]} Kh7 {[%clk 00:09:53]} {[%emt 00:00:19]} 37. Qf4 {[%clk 00:15:44]}
{[%emt 00:01:30]} Bg6 {[%clk 00:10:05]} {[%emt 00:00:18]} 38. Bf6 {[%clk
00:15:57]} {[%emt 00:00:17]} Kg8 {[%clk 00:05:08]} {[%emt 00:05:26]} 39. Qd6
{[%clk 00:14:53]} {[%emt 00:01:33]} Bf7 {[%clk 00:05:20]} {[%emt 00:00:18]} 40.
Qd7 {[%clk 00:14:03]} {[%emt 00:01:20]} Nxd4 {[%clk 00:05:27]} {[%emt
00:00:23]} 41. Qc8+ {[%clk 00:14:06]} {[%emt 00:00:27]} 1-0

[Event "NJSK 2024 B"]
[Site "Groningen, Netherlands"]
[Date "2024.04.30"]
[Round "4.2"]
[White "Kazarjan, Gachatur"]
[Black "Smeets, Kobe"]
[Result "0-1"]
[TimeControl "90min/40moves + 30min + 30sec/move"]
[WhiteElo "2203"]
[BlackElo "2274"]

1. e4 {[%clk 01:30:58]} {[%emt 00:00:01]} c5 {[%clk 01:30:55]} {[%emt
00:00:06]} 2. Nf3 {[%clk 01:31:20]} {[%emt 00:00:08]} e6 {[%clk 01:31:18]}
{[%emt 00:00:07]} 3. d4 {[%clk 01:31:32]} {[%emt 00:00:18]} cxd4 {[%clk
01:31:42]} {[%emt 00:00:06]} 4. Nxd4 {[%clk 01:31:57]} {[%emt 00:00:04]} Nc6
{[%clk 01:32:05]} {[%emt 00:00:08]} 5. Nc3 {[%clk 01:32:22]} {[%emt 00:00:04]}
Qc7 {[%clk 01:32:29]} {[%emt 00:00:05]} 6. Be2 {[%clk 01:31:34]} {[%emt
00:01:19]} Nf6 {[%clk 01:32:53]} {[%emt 00:00:07]} 7. Be3 {[%clk 01:31:53]}
{[%emt 00:00:10]} Be7 {[%clk 01:30:43]} {[%emt 00:02:39]} 8. O-O {[%clk
01:28:10]} {[%emt 00:04:13]} O-O {[%clk 01:30:53]} {[%emt 00:00:21]} 9. f4
{[%clk 01:28:24]} {[%emt 00:00:17]} d6 {[%clk 01:30:55]} {[%emt 00:00:28]} 10.
Qe1 {[%clk 01:25:03]} {[%emt 00:03:51]} Nxd4 {[%clk 01:28:49]} {[%emt
00:02:36]} 11. Bxd4 {[%clk 01:25:10]} {[%emt 00:00:23]} a6 {[%clk 01:28:44]}
{[%emt 00:00:34]} 12. Qg3 {[%clk 01:19:49]} {[%emt 00:05:51]} b5 {[%clk
01:27:28]} {[%emt 00:01:46]} 13. a3 {[%clk 01:19:03]} {[%emt 00:01:16]} Bb7
{[%clk 01:27:51]} {[%emt 00:00:07]} 14. Rae1 {[%clk 01:16:17]} {[%emt
00:03:16]} Rad8 {[%clk 01:26:20]} {[%emt 00:02:01]} 15. Kh1 {[%clk 01:01:04]}
{[%emt 00:15:43]} Rd7 {[%clk 01:15:55]} {[%emt 00:10:55]} 16. Bd3 {[%clk
00:53:02]} {[%emt 00:08:32]} Re8 {[%clk 00:57:57]} {[%emt 00:18:28]} 17. e5
{[%clk 00:33:08]} {[%emt 00:20:24]} dxe5 {[%clk 00:58:11]} {[%emt 00:00:16]} 18.
Bxe5 {[%clk 00:33:29]} {[%emt 00:00:09]} Qd8 {[%clk 00:54:41]} {[%emt
00:04:00]} 19. Ne4 {[%clk 00:28:12]} {[%emt 00:05:48]} Nh5 {[%clk 00:43:24]}
{[%emt 00:11:47]} 20. Qg4 {[%clk 00:22:54]} {[%emt 00:05:47]} g6 {[%clk
00:41:39]} {[%emt 00:02:15]} 21. f5 {[%clk 00:19:58]} {[%emt 00:03:27]} exf5
{[%clk 00:37:59]} {[%emt 00:04:10]} 22. Rxf5 {[%clk 00:19:53]} {[%emt
00:00:35]} Ng7 {[%clk 00:33:36]} {[%emt 00:04:52]} 23. Bxg7 {[%clk 00:05:38]}
{[%emt 00:14:46]} Kxg7 {[%clk 00:33:50]} {[%emt 00:00:15]} 24. Ref1 {[%clk
00:05:23]} {[%emt 00:00:46]} Bd5 {[%clk 00:28:15]} {[%emt 00:06:04]} 25. Qg3
{[%clk 00:04:05]} {[%emt 00:01:47]} Bh4 {[%clk 00:25:55]} {[%emt 00:02:50]} 26.
Qg4 {[%clk 00:02:38]} {[%emt 00:01:57]} Bxe4 {[%clk 00:25:30]} {[%emt
00:00:55]} 27. Bxe4 {[%clk 00:02:07]} {[%emt 00:01:02]} Rxe4 {[%clk 00:25:28]}
{[%emt 00:00:32]} 28. Qxe4 {[%clk 00:01:41]} {[%emt 00:00:56]} gxf5 {[%clk
00:25:49]} {[%emt 00:00:08]} 29. Qxf5 {[%clk 00:01:52]} {[%emt 00:00:20]} Bf6
{[%clk 00:22:57]} {[%emt 00:03:22]} 30. Qg4+ {[%clk 00:02:00]} {[%emt
00:00:22]} Kh8 {[%clk 00:22:27]} {[%emt 00:01:00]} 31. h3 {[%clk 00:01:10]}
{[%emt 00:01:20]} Rd5 {[%clk 00:21:09]} {[%emt 00:01:48]} 32. Re1 {[%clk
00:00:38]} {[%emt 00:01:02]} Rg5 {[%clk 00:19:12]} {[%emt 00:02:26]} 0-1

[Event "NJSK 2024 B"]
[Site "Groningen, Netherlands"]
[Date "2024.04.30"]
[Round "4.3"]
[White "Madularea, David"]
[Black "Van Arendonk, Polle"]
[Result "1/2-1/2"]
[TimeControl "90min/40moves + 30min + 30sec/move"]
[WhiteElo "2022"]
[BlackElo "1914"]

1. Nf3 {[%clk 01:30:54]} {[%emt 00:00:06]} d5 {[%clk 01:28:54]} {[%emt
00:02:07]} 2. e3 {[%clk 01:31:17]} {[%emt 00:00:07]} Bf5 {[%clk 01:23:56]}
{[%emt 00:05:28]} 3. c4 {[%clk 01:30:45]} {[%emt 00:01:01]} e6 {[%clk
01:22:53]} {[%emt 00:01:33]} 4. cxd5 {[%clk 01:26:21]} {[%emt 00:04:54]} exd5
{[%clk 01:23:04]} {[%emt 00:00:19]} 5. Qb3 {[%clk 01:26:44]} {[%emt 00:00:06]}
Bc8 {[%clk 01:13:36]} {[%emt 00:09:59]} 6. Nc3 {[%clk 01:23:50]} {[%emt
00:03:23]} Nf6 {[%clk 01:13:38]} {[%emt 00:00:28]} 7. d4 {[%clk 01:23:31]}
{[%emt 00:00:49]} c6 {[%clk 01:13:00]} {[%emt 00:01:08]} 8. Bd3 {[%clk
01:15:05]} {[%emt 00:08:55]} Nbd7 {[%clk 01:11:46]} {[%emt 00:01:45]} 9. O-O
{[%clk 01:12:29]} {[%emt 00:03:05]} Bd6 {[%clk 01:09:21]} {[%emt 00:02:55]} 10.
Nd2 {[%clk 01:09:51]} {[%emt 00:03:08]} O-O {[%clk 01:06:30]} {[%emt 00:03:21]}
11. Re1 {[%clk 01:07:49]} {[%emt 00:02:32]} Bxh2+ {[%clk 00:46:26]} {[%emt
00:20:34]} 12. Kxh2 {[%clk 01:07:55]} {[%emt 00:00:23]} Ng4+ {[%clk 00:46:03]}
{[%emt 00:00:54]} 13. Kg1 {[%clk 01:08:19]} {[%emt 00:00:06]} Qh4 {[%clk
00:46:28]} {[%emt 00:00:06]} 14. Nd1 {[%clk 01:08:39]} {[%emt 00:00:09]} Qh2+
{[%clk 00:46:35]} {[%emt 00:00:23]} 15. Kf1 {[%clk 01:09:05]} {[%emt 00:00:04]}
Qh1+ {[%clk 00:44:56]} {[%emt 00:02:10]} 16. Ke2 {[%clk 01:09:27]} {[%emt
00:00:08]} Qxg2 {[%clk 00:45:17]} {[%emt 00:00:09]} 17. Nf3 {[%clk 01:03:31]}
{[%emt 00:06:26]} Ndf6 {[%clk 00:36:45]} {[%emt 00:09:03]} 18. Rg1 {[%clk
00:48:17]} {[%emt 00:15:43]} Qh3 {[%clk 00:35:58]} {[%emt 00:01:17]} 19. Qb4
{[%clk 00:42:56]} {[%emt 00:05:51]} Qh5 {[%clk 00:23:21]} {[%emt 00:13:07]} 20.
Qd6 {[%clk 00:34:37]} {[%emt 00:08:48]} g5 {[%clk 00:23:19]} {[%emt 00:00:32]}
21. Ke1 {[%clk 00:31:41]} {[%emt 00:03:26]} Ne4 {[%clk 00:18:00]} {[%emt
00:05:50]} 22. Bxe4 {[%clk 00:27:28]} {[%emt 00:04:43]} dxe4 {[%clk 00:18:28]}
{[%emt 00:00:02]} 23. Ne5 {[%clk 00:23:23]} {[%emt 00:04:33]} Qh2 {[%clk
00:16:25]} {[%emt 00:02:35]} 24. Rg3 {[%clk 00:22:16]} {[%emt 00:01:37]} Qh1+
{[%clk 00:16:38]} {[%emt 00:00:17]} 25. Kd2 {[%clk 00:21:11]} {[%emt 00:01:34]}
Nxe5 {[%clk 00:17:00]} {[%emt 00:00:09]} 26. Qxe5 {[%clk 00:20:57]} {[%emt
00:00:45]} f6 {[%clk 00:17:18]} {[%emt 00:00:13]} 27. Qd6 {[%clk 00:19:41]}
{[%emt 00:01:45]} h5 {[%clk 00:09:00]} {[%emt 00:08:48]} 28. Rxg5+ {[%clk
00:10:18]} {[%emt 00:09:53]} fxg5 {[%clk 00:09:26]} {[%emt 00:00:04]} 29. Qg6+
{[%clk 00:10:43]} {[%emt 00:00:04]} Kh8 {[%clk 00:09:53]} {[%emt 00:00:03]} 30.
Qh6+ {[%clk 00:08:30]} {[%emt 00:02:43]} Kg8 {[%clk 00:10:19]} {[%emt
00:00:04]} 31. Qg6+ {[%clk 00:08:58]} {[%emt 00:00:02]} Kh8 {[%clk 00:10:42]}
{[%emt 00:00:08]} 32. Qh6+ {[%clk 00:09:10]} {[%emt 00:00:18]} Kg8 {[%clk
00:11:08]} {[%emt 00:00:04]} 33. Qg6+ {[%clk 00:09:04]} {[%emt 00:00:05]}
1/2-1/2

[Event "NJSK 2024 B"]
[Site "Groningen, Netherlands"]
[Date "2024.04.30"]
[Round "4.4"]
[White "Wink, Luka"]
[Black "Fallaux, Storm"]
[Result "1-0"]
[TimeControl "90min/40moves + 30min + 30sec/move"]
[WhiteElo "2082"]
[BlackElo "1905"]

1. e4 {[%clk 01:30:57]} {[%emt 00:00:02]} c5 {[%clk 01:28:07]} {[%emt
00:02:54]} 2. Nf3 {[%clk 01:31:08]} {[%emt 00:00:18]} d6 {[%clk 01:28:26]}
{[%emt 00:00:11]} 3. d4 {[%clk 01:31:28]} {[%emt 00:00:10]} cxd4 {[%clk
01:28:51]} {[%emt 00:00:05]} 4. Nxd4 {[%clk 01:31:51]} {[%emt 00:00:06]} Nf6
{[%clk 01:29:14]} {[%emt 00:00:08]} 5. Nc3 {[%clk 01:32:14]} {[%emt 00:00:07]}
g6 {[%clk 01:29:39]} {[%emt 00:00:05]} 6. Be3 {[%clk 01:31:33]} {[%emt
00:01:11]} Nc6 {[%clk 01:29:56]} {[%emt 00:00:14]} 7. f3 {[%clk 01:24:30]}
{[%emt 00:07:32]} h5 {[%clk 01:30:10]} {[%emt 00:00:16]} 8. Bc4 {[%clk
01:19:58]} {[%emt 00:05:03]} Qb6 {[%clk 01:18:58]} {[%emt 00:11:42]} 9. Qd2
{[%clk 01:04:07]} {[%emt 00:16:22]} Bh6 {[%clk 01:06:41]} {[%emt 00:12:47]} 10.
Bxh6 {[%clk 00:56:46]} {[%emt 00:07:50]} Nxd4 {[%clk 00:56:46]} {[%emt
00:10:24]} 11. Bg7 {[%clk 00:46:51]} {[%emt 00:10:26]} Rh7 {[%clk 00:39:05]}
{[%emt 00:18:11]} 12. Bxf6 {[%clk 00:46:46]} {[%emt 00:00:35]} exf6 {[%clk
00:38:49]} {[%emt 00:00:47]} 13. Na4 {[%clk 00:37:26]} {[%emt 00:09:50]} Nxc2+
{[%clk 00:33:57]} {[%emt 00:05:22]} 14. Qxc2 {[%clk 00:37:36]} {[%emt
00:00:19]} Qb4+ {[%clk 00:34:09]} {[%emt 00:00:18]} 15. Kd1 {[%clk 00:33:04]}
{[%emt 00:05:03]} b5 {[%clk 00:34:03]} {[%emt 00:00:36]} 16. Bd5 {[%clk
00:32:48]} {[%emt 00:00:45]} Rb8 {[%clk 00:32:08]} {[%emt 00:02:25]} 17. Nc3
{[%clk 00:32:11]} {[%emt 00:01:07]} Bd7 {[%clk 00:31:12]} {[%emt 00:01:26]} 18.
a3 {[%clk 00:30:17]} {[%emt 00:02:25]} Qc5 {[%clk 00:30:30]} {[%emt 00:01:11]}
19. b4 {[%clk 00:28:08]} {[%emt 00:02:39]} Qb6 {[%clk 00:30:03]} {[%emt
00:00:58]} 20. Ke2 {[%clk 00:27:00]} {[%emt 00:01:38]} f5 {[%clk 00:29:49]}
{[%emt 00:00:43]} 21. Rhe1 {[%clk 00:25:37]} {[%emt 00:01:52]} Rc8 {[%clk
00:29:47]} {[%emt 00:00:33]} 22. Qd3 {[%clk 00:24:27]} {[%emt 00:01:40]} fxe4
{[%clk 00:29:56]} {[%emt 00:00:20]} 23. Nxe4 {[%clk 00:23:07]} {[%emt
00:01:50]} Bf5 {[%clk 00:29:22]} {[%emt 00:01:05]} 24. Kf1 {[%clk 00:22:17]}
{[%emt 00:01:19]} Kf8 {[%clk 00:28:30]} {[%emt 00:01:22]} 25. Rac1 {[%clk
00:21:56]} {[%emt 00:00:52]} Rxc1 {[%clk 00:26:09]} {[%emt 00:02:51]} 26. Rxc1
{[%clk 00:21:20]} {[%emt 00:01:06]} f6 {[%clk 00:25:41]} {[%emt 00:00:57]} 27.
Rc6 {[%clk 00:20:54]} {[%emt 00:00:56]} Qb8 {[%clk 00:24:06]} {[%emt 00:02:05]}
28. Qc3 {[%clk 00:20:15]} {[%emt 00:01:09]} 1-0